fUSD/lending_fUSD_20250620
["ID","MTS","AMOUNT","RATE_DAILY","PERIOD"]
[366783440,1750449051109,-490.0,0.00026363,4]
[366783441,1750449051118,-488.31608757,0.00026363,4]
[366783442,1750449051128,-151.0,0.00026363,7]
[366783443,1750449051137,-151.0,0.00026363,7]
[366783444,1750449051146,-424.127037,0.00026363,7]
[366783445,1750449051155,-151.0,0.00026363,7]
[366783446,1750449051164,-424.127037,0.00026363,7]
[366783447,1750449051173,-151.0,0.00026363,7]
[366783448,1750449051182,-153.15803,0.00026363,7]
[366783449,1750449051191,-211.696688,0.00026363,7]
[366783450,1750449051200,-151.0,0.00026363,7]
[366783451,1750449051210,-293.565492,0.00026363,7]
[366783452,1750449051219,-293.565492,0.00026363,7]
[366783453,1750449051228,-151.0,0.00026363,7]
[366783454,1750449051238,-195.559574,0.00026363,7]
[366783455,1750449051247,-195.559574,0.00026363,7]
[366783456,1750449051256,-151.0,0.00026363,7]
[366783457,1750449051266,-232.957075,0.00026363,7]
[366783458,1750449051276,-151.0,0.00026363,7]
[366783459,1750449051285,-232.957075,0.00026363,7]
[366783460,1750449051295,-232.957075,0.00026363,7]
[366783461,1750449051304,-232.957075,0.00026363,7]
[366783462,1750449051314,-298.997434,0.00026363,7]
[366783463,1750449051324,-298.997434,0.00026363,7]
[366783464,1750449051333,-298.997434,0.00026363,7]
[366783465,1750449051342,-298.997434,0.00026363,7]
[366783466,1750449051352,-310.77376,0.00026363,7]
[366783467,1750449051361,-310.77376,0.00026363,7]
[366783468,1750449051371,-310.77376,0.00026363,7]
[366783469,1750449051380,-310.77376,0.00026363,7]
[366783470,1750449051390,-183.148491,0.00026363,7]
[366783471,1750449051399,-183.148491,0.00026363,7]
[366783472,1750449051409,-151.0,0.00026363,7]
[366783473,1750449051420,-151.0,0.00026363,7]
[366783474,1750449051430,-151.0,0.00026363,7]
[366783475,1750449051439,-151.0,0.00026363,7]
[366783476,1750449051450,-151.0,0.00026363,7]
[366783477,1750449051459,-151.0,0.00026363,7]
[366783478,1750449051469,-151.0,0.00026363,7]
[366783479,1750449051478,-151.0,0.00026363,7]
[366783480,1750449051487,-231.454996,0.00026363,7]
[366783481,1750449051497,-490.0,0.00026363,4]
[366783482,1750449051507,-490.0,0.00026363,4]
[366783483,1750449051516,-151.0,0.00026363,7]
[366783484,1750449051526,-151.0,0.00026363,7]
[366783485,1750449051535,-490.0,0.00026363,4]
[366783486,1750449051544,-151.0,0.00026363,7]
[366783487,1750449051554,-490.0,0.00026363,4]
[366783488,1750449051563,-151.0,0.00026363,7]
[366783489,1750449051572,-227.625089,0.00026363,7]
[366783490,1750449051581,-490.0,0.00026363,4]
[366783491,1750449051590,-1209.824082,0.00026363,7]
[366783492,1750449051600,-1209.824082,0.00026363,7]
[366783493,1750449051609,-550.53,0.00026363,4]
[366783494,1750449051618,-1209.824082,0.00026363,7]
[366783495,1750449051628,-1209.824082,0.00026363,7]
[366783496,1750449051637,-151.0,0.00026363,7]
[366783497,1750449051647,-151.0,0.00026363,7]
[366783498,1750449051657,-2135.16,0.00026363,4]
[366783499,1750449051666,-490.0,0.00026363,4]
[366783500,1750449051675,-751.56,0.00026363,4]
[366783501,1750449051684,-151.0,0.00026363,7]
[366783502,1750449051693,-151.0,0.00026363,7]
[366783503,1750449051703,-490.0,0.00026363,4]
[366783504,1750449051712,-151.0,0.00026363,7]
[366783505,1750449051925,-151.0,0.00026363,7]
[366783506,1750449051938,-151.0,0.00026363,7]
[366783507,1750449051949,-250.787156,0.00026363,7]
[366783508,1750449051958,-575.93,0.00026363,4]
[366783509,1750449051968,-1256.02,0.00026363,4]
[366783510,1750449051978,-1186.666479,0.00026363,7]
[366783511,1750449051988,-600.16,0.00026363,4]
[366783512,1750449051997,-1186.666479,0.00026363,7]
[366783513,1750449052007,-1186.666479,0.00026363,7]
[366783514,1750449052018,-1186.666479,0.00026363,7]
[366783515,1750449052028,-627.67,0.00026363,4]
[366783516,1750449052037,-490.0,0.00026363,4]
[366783517,1750449052046,-151.0,0.00026363,7]
[366783518,1750449052055,-151.0,0.00026363,7]
[366783519,1750449052065,-3844.566132,0.00026363,7]
[366783520,1750449052074,-151.0,0.00026363,7]
[366783521,1750449052083,-3844.566132,0.00026363,7]
[366783522,1750449052092,-162.348983,0.00026363,7]
[366783523,1750449052102,-482.796612,0.00026363,7]
[366783524,1750449052112,-482.796612,0.00026363,7]
[366783525,1750449052121,-482.796612,0.00026363,7]
[366783526,1750449052130,-482.796612,0.00026363,7]
[366783527,1750449052140,-300.23436,0.00026363,7]
[366783528,1750449052149,-210.488776,0.00026363,7]
[366783529,1750449052159,-300.23436,0.00026363,7]
[366783530,1750449052168,-210.488776,0.00026363,7]
[366783531,1750449052177,-587.394222,0.00026363,7]
[366783532,1750449052187,-587.394222,0.00026363,7]
[366783533,1750449052196,-151.0,0.00026364,7]
[366783534,1750449052205,-424.127037,0.00026364,7]
[366783535,1750449052214,-424.127037,0.00026364,7]
[366783536,1750449052223,-195.559574,0.00026364,7]
[366783537,1750449052233,-195.559574,0.00026364,7]
[366783538,1750449052244,-151.0,0.00026364,7]
[366783539,1750449052254,-150.0,0.00026365,2]
[366783540,1750449052264,-280.44302703,0.00026366,2]
[366783541,1750449052273,-150.0,0.00026368,2]
[366783542,1750449052283,-154.96534825,0.00026369,3]
[366783543,1750449052292,-300.0,0.00026369,2]
[366783544,1750449052302,-1000.0,0.00026371,2]
[366783545,1750449052311,-151.0,0.00026372,7]
[366783546,1750449052321,-151.0,0.00026372,7]
[366783547,1750449052332,-151.0,0.00026372,7]
[366783548,1750449052341,-151.0,0.00026372,7]
[366783549,1750449052351,-293.565492,0.00026372,7]
[366783550,1750449052361,-293.565492,0.00026372,7]
[366783551,1750449052370,-151.0,0.00026372,7]
[366783552,1750449052380,-500.0,0.00026373,2]
[366783553,1750449052389,-500.0,0.00026373,2]
[366783554,1750449052398,-500.0,0.00026373,2]
[366783555,1750449052408,-500.0,0.00026373,2]
[366783556,1750449052417,-500.0,0.00026375,2]
[366783557,1750449052427,-820.51,0.00026375,4]
[366783558,1750449052437,-500.0,0.00026375,2]
[366783559,1750449052447,-202.79560054,0.00026375,2]
[366783560,1750449052457,-500.0,0.00026375,2]
[366783561,1750449052466,-501.56272529,0.00026375,2]
[366783562,1750449052476,-150.0,0.00026375,2]
[366783563,1750449052486,-150.0,0.00026376,2]
[366783564,1750449052496,-150.0,0.00026376,2]
[366783565,1750449052505,-151.0,0.00026377,7]
[366783566,1750449052516,-151.0,0.00026377,7]
[366783567,1750449052525,-151.0,0.00026377,7]
[366783568,1750449052535,-280.44302703,0.00026379,2]
[366783569,1750449052545,-150.0,0.00026382,2]
[366783570,1750449052555,-151.0,0.00026383,7]
[366783571,1750449052565,-151.0,0.00026383,7]
[366783572,1750449052574,-151.0,0.00026383,7]
[366783573,1750449052583,-151.0,0.00026383,7]
[366783574,1750449052593,-232.957075,0.00026383,7]
[366783575,1750449052603,-232.957075,0.00026383,7]
[366783576,1750449052612,-151.0,0.00026383,7]
[366783577,1750449052622,-151.0,0.00026383,7]
[366783578,1750449052631,-151.0,0.00026383,7]
[366783579,1750449052641,-150.0,0.00026384,2]
[366783580,1750449052650,-300.0,0.00026387,10]
[366783581,1750449052659,-300.0,0.00026388,10]
[366783582,1750449052669,-298.997434,0.00026388,7]
[366783583,1750449052678,-298.997434,0.00026388,7]
[366783584,1750449052687,-310.77376,0.00026388,7]
[366783585,1750449052697,-310.77376,0.00026388,7]
[366783586,1750449052706,-151.0,0.00026388,7]
[366783587,1750449052715,-820.51,0.00026388,4]
[366783588,1750449052724,-820.51,0.00026388,4]
[366783589,1750449052734,-820.51,0.00026388,4]
[366783590,1750449052744,-820.51,0.00026388,4]
[366783591,1750449052753,-820.51,0.00026388,4]
[366783592,1750449052763,-151.0,0.00026388,7]
[366783593,1750449052787,-482.796612,0.00026388,7]
[366783594,1750449052799,-482.796612,0.00026388,7]
[366783595,1750449052810,-5396.27917012,0.00026388,2]
[366783596,1750449052820,-151.527319,0.00026389,7]
[366783597,1750449052831,-151.0,0.00026389,7]
[366783598,1750449052842,-151.0,0.00026389,7]
[366783599,1750449052852,-293.565492,0.00026389,7]
[366783600,1750449052863,-293.565492,0.00026389,7]
[366783601,1750449052873,-151.0,0.00026389,7]
[366783602,1750449052883,-232.957075,0.00026389,7]
[366783603,1750449052894,-232.957075,0.00026389,7]
[366783604,1750449052904,-298.997434,0.00026389,7]
[366783605,1750449052915,-298.997434,0.00026389,7]
[366783606,1750449052924,-310.77376,0.00026389,7]
[366783607,1750449052937,-310.77376,0.00026389,7]
[366783608,1750449052947,-151.0,0.00026389,7]
[366783609,1750449052958,-151.0,0.00026389,7]
[366783610,1750449052967,-151.0,0.00026389,7]
[366783611,1750449052979,-151.0,0.00026389,7]
[366783612,1750449052989,-190.652907,0.00026389,7]
[366783613,1750449052999,-482.796612,0.00026389,7]
[366783614,1750449053011,-482.796612,0.00026389,7]
[366783615,1750449053023,-150.0,0.0002639,2]
[366783616,1750449053033,-150.0,0.00026391,2]
[366783617,1750449053043,-300.0,0.00026391,10]
[366783618,1750449053054,-300.0,0.00026392,10]
[366783619,1750449053064,-300.0,0.00026392,10]
[366783620,1750449053074,-298.9107448,0.00026392,2]
[366783621,1750449053084,-490.0,0.00026392,4]
[366783622,1750449053094,-490.0,0.00026392,4]
[366783623,1750449053105,-490.0,0.00026392,4]
[366783624,1750449053115,-490.0,0.00026392,4]
[366783625,1750449053126,-490.0,0.00026392,4]
[366783626,1750449053136,-490.0,0.00026392,4]
[366783627,1750449053146,-490.0,0.00026392,4]
[366783628,1750449053156,-490.0,0.00026392,4]
[366783629,1750449053166,-490.0,0.00026392,4]
[366783630,1750449053176,-490.0,0.00026392,4]
[366783631,1750449053187,-490.0,0.00026392,4]
[366783632,1750449053197,-490.0,0.00026392,4]
[366783633,1750449053207,-490.0,0.00026392,4]
[366783634,1750449053223,-490.0,0.00026392,4]
[366783635,1750449053233,-490.0,0.00026392,4]
[366783636,1750449053244,-490.0,0.00026392,4]
[366783637,1750449053254,-490.0,0.00026392,4]
[366783638,1750449053266,-490.0,0.00026392,4]
[366783639,1750449053278,-151.0,0.00026392,7]
[366783640,1750449053289,-151.0,0.00026392,7]
[366783641,1750449053299,-151.0,0.00026392,7]
[366783642,1750449053309,-151.0,0.00026392,7]
[366783643,1750449053320,-151.0,0.00026392,7]
[366783644,1750449053330,-336.347626,0.00026392,7]
[366783645,1750449053341,-336.347626,0.00026392,7]
[366783646,1750449053351,-151.0,0.00026392,7]
[366783647,1750449053362,-820.51,0.00026392,4]
[366783648,1750449053373,-1209.824082,0.00026392,7]
[366783649,1750449053383,-1229.05,0.00026392,4]
[366783650,1750449053394,-1209.824082,0.00026392,7]
[366783651,1750449053404,-151.0,0.00026392,7]
[366783652,1750449053414,-1186.666479,0.00026392,7]
[366783653,1750449053424,-1186.666479,0.00026392,7]
[366783654,1750449053434,-280.44302703,0.00026392,2]
[366783655,1750449053444,-3844.566132,0.00026392,7]
[366783656,1750449053455,-3844.566132,0.00026392,7]
[366783657,1750449053464,-1214.73,0.00026392,4]
[366783658,1750449053475,-300.23436,0.00026392,7]
[366783659,1750449053485,-210.488776,0.00026392,7]
[366783660,1750449053495,-210.488776,0.00026392,7]
[366783661,1750449053506,-300.23436,0.00026392,7]
[366783662,1750449053519,-210.488776,0.00026392,7]
[366783663,1750449053530,-210.488776,0.00026392,7]
[366783664,1750449053540,-587.394222,0.00026392,7]
[366783665,1750449053551,-587.394222,0.00026392,7]
[366783666,1750449053561,-587.394222,0.00026392,7]
[366783667,1750449053572,-587.394222,0.00026392,7]
[366783668,1750449053581,-99176.09427008,0.00026393,2]
[366783669,1750449054103,-1284.10286343,0.00026393,2]
[366783670,1750449055096,-150.0,0.00025332,2]
[366783671,1750449055107,-150.0,0.00025372,2]
[366783672,1750449055117,-150.0,0.00025394,2]
[366783673,1750449055126,-150.0,0.00025402,2]
[366783674,1750449055136,-150.0,0.00025515,2]
[366783675,1750449055146,-150.0,0.00025552,2]
[366783676,1750449055156,-150.0,0.00025649,2]
[366783677,1750449055166,-150.0,0.00025755,2]
[366783678,1750449055176,-150.0,0.00025764,2]
[366783679,1750449055186,-150.0,0.00025788,2]
[366783680,1750449055196,-150.0,0.000258,2]
[366783681,1750449055207,-150.0,0.00025821,2]
[366783682,1750449055217,-150.0,0.00025841,2]
[366783683,1750449055227,-150.0,0.00025854,2]
[366783684,1750449055237,-150.0,0.00026035,2]
[366783685,1750449055247,-150.0,0.00026038,2]
[366783686,1750449055257,-150.0,0.00026066,2]
[366783687,1750449055269,-150.0,0.00026074,2]
[366783688,1750449055285,-150.0,0.00026089,2]
[366783689,1750449055295,-150.0,0.00026108,2]
[366783690,1750449055305,-150.0,0.00026129,2]
[366783691,1750449055315,-150.0,0.00026193,2]
[366783692,1750449055325,-490.0,0.00026259,4]
[366783693,1750449055335,-150.0,0.00026269,2]
[366783694,1750449055345,-150.0,0.00026292,2]
[366783695,1750449055355,-150.0,0.00026323,2]
[366783696,1750449055366,-150.0,0.00026376,2]
[366783697,1750449055375,-17398.53758797,0.00026393,2]
[366783698,1750449055386,-151.0,0.00026393,7]
[366783699,1750449055396,-151.0,0.00026393,7]
[366783700,1750449055406,-253.84038,0.00026393,7]
[366783701,1750449055416,-151.0,0.00026393,7]
[366783702,1750449055426,-151.0,0.00026393,7]
[366783703,1750449055436,-151.0,0.00026393,7]
[366783704,1750449055447,-151.0,0.00026393,7]
[366783705,1750449055458,-151.0,0.00026393,7]
[366783706,1750449055468,-151.0,0.00026393,7]
[366783707,1750449055478,-151.0,0.00026393,7]
[366783708,1750449055487,-151.0,0.00026393,7]
[366783709,1750449055497,-336.347626,0.00026393,7]
[366783710,1750449055507,-305.97846153,0.00026393,7]
[366783711,1750449055523,-30.36916447,0.00026393,7]
[366783712,1750449055534,-232.957075,0.00026393,7]
[366783713,1750449055544,-232.957075,0.00026393,7]
[366783714,1750449055553,-232.957075,0.00026393,7]
[366783715,1750449055563,-232.957075,0.00026393,7]
[366783716,1750449055573,-298.997434,0.00026393,7]
[366783717,1750449055583,-98.41025737,0.00026393,7]
[366783718,1750449055595,-200.58717663,0.00026393,7]
[366783719,1750449055605,-298.997434,0.00026393,7]
[366783720,1750449055614,-77.06221779,0.00026393,7]
[366783721,1750449055626,-221.93521621,0.00026393,7]
[366783722,1750449055637,-310.77376,0.00026393,7]
[366783723,1750449055647,-310.77376,0.00026393,7]
[366783724,1750449055657,-310.77376,0.00026393,7]
[366783725,1750449055667,-310.77376,0.00026393,7]
[366783726,1750449055678,-183.148491,0.00026393,7]
[366783727,1750449055688,-183.148491,0.00026393,7]
[366783728,1750449055698,-183.148491,0.00026393,7]
[366783729,1750449055708,-183.148491,0.00026393,7]
[366783730,1750449055718,-94.77830728,0.00026393,7]
[366783731,1750449055754,-150.0,0.00025765,2]
[366783732,1750449055764,-56.22169272,0.00026393,7]
[366783733,1750449055776,-151.0,0.00026393,7]
[366783734,1750449055786,-151.0,0.00026393,7]
[366783735,1750449055796,-151.0,0.00026393,7]
[366783736,1750449055806,-151.0,0.00026393,7]
[366783737,1750449055816,-151.0,0.00026393,7]
[366783738,1750449055826,-203.726991,0.00026393,7]
[366783739,1750449055836,-151.0,0.00026393,7]
[366783740,1750449055846,-238.900432,0.00026393,7]
[366783741,1750449055857,-1209.824082,0.00026393,7]
[366783742,1750449055868,-1209.824082,0.00026393,7]
[366783743,1750449055878,-151.0,0.00026393,7]
[366783744,1750449055888,-1186.666479,0.00026393,7]
[366783745,1750449055899,-1186.666479,0.00026393,7]
[366783746,1750449055909,-1500.0,0.00026393,14]
[366783747,1750449055919,-1500.0,0.00026393,14]
[366783748,1750449055929,-1500.0,0.00026393,14]
[366783749,1750449055942,-1500.0,0.00026393,14]
[366783750,1750449055951,-1500.0,0.00026393,14]
[366783751,1750449055962,-1500.0,0.00026393,14]
[366783752,1750449055971,-1500.0,0.00026393,14]
[366783753,1750449055982,-1500.0,0.00026393,14]
[366783754,1750449055992,-1500.0,0.00026393,14]
[366783755,1750449056002,-1500.0,0.00026393,14]
[366783756,1750449056013,-1500.0,0.00026393,14]
[366783757,1750449056026,-1500.0,0.00026393,14]
[366783758,1750449056036,-1500.0,0.00026393,14]
[366783759,1750449056046,-1500.0,0.00026393,14]
[366783760,1750449056056,-1500.0,0.00026393,14]
[366783761,1750449056066,-1500.0,0.00026393,14]
[366783762,1750449056075,-1500.0,0.00026393,14]
[366783763,1750449056085,-1500.0,0.00026393,14]
[366783764,1750449056096,-1500.0,0.00026393,14]
[366783765,1750449056107,-1500.0,0.00026393,14]
[366783766,1750449056116,-1500.0,0.00026393,14]
[366783767,1750449056126,-1500.0,0.00026393,14]
[366783768,1750449056137,-1500.0,0.00026393,14]
[366783769,1750449056147,-1500.0,0.00026393,14]
[366783770,1750449056157,-1500.0,0.00026393,14]
[366783771,1750449056167,-1500.0,0.00026393,14]
[366783772,1750449056188,-1500.0,0.00026393,14]
[366783773,1750449056200,-1500.0,0.00026393,14]
[366783774,1750449056211,-1500.0,0.00026393,14]
[366783775,1750449056221,-1500.0,0.00026393,14]
[366783776,1750449056233,-1500.0,0.00026393,14]
[366783777,1750449056243,-1500.0,0.00026393,14]
[366783778,1750449056254,-1500.0,0.00026393,14]
[366783779,1750449056264,-1500.0,0.00026393,14]
[366783780,1750449056276,-1500.0,0.00026393,14]
[366783781,1750449056286,-1500.0,0.00026393,14]
[366783782,1750449056296,-1500.0,0.00026393,14]
[366783783,1750449056306,-1500.0,0.00026393,14]
[366783784,1750449056316,-1500.0,0.00026393,14]
[366783785,1750449056327,-1500.0,0.00026393,14]
[366783786,1750449056337,-1500.0,0.00026393,14]
[366783787,1750449056347,-1500.0,0.00026393,14]
[366783788,1750449056357,-1500.0,0.00026393,14]
[366783789,1750449056367,-1500.0,0.00026393,14]
[366783790,1750449056378,-1500.0,0.00026393,14]
[366783791,1750449056388,-1500.0,0.00026393,14]
[366783792,1750449056398,-1500.0,0.00026393,14]
[366783793,1750449056409,-231.842197,0.00026393,14]
[366783794,1750449056419,-3844.566132,0.00026393,7]
[366783795,1750449056430,-3844.566132,0.00026393,7]
[366783796,1750449056440,-3844.566132,0.00026393,7]
[366783797,1750449056450,-3844.566132,0.00026393,7]
[366783798,1750449056461,-482.796612,0.00026393,7]
[366783799,1750449056471,-482.796612,0.00026393,7]
[366783800,1750449056481,-482.796612,0.00026393,7]
[366783801,1750449056491,-482.796612,0.00026393,7]
[366783802,1750449056501,-300.23436,0.00026393,7]
[366783803,1750449056512,-300.23436,0.00026393,7]
[366783804,1750449056524,-210.488776,0.00026393,7]
[366783805,1750449056534,-300.23436,0.00026393,7]
[366783806,1750449056545,-300.23436,0.00026393,7]
[366783807,1750449056556,-210.488778,0.00026393,7]
[366783808,1750449056566,-587.394222,0.00026393,7]
[366783809,1750449056577,-587.394227,0.00026393,7]
[366783810,1750449056587,-150.0,0.00026395,2]
[366783811,1750449056597,-150.0,0.00026397,2]
[366783812,1750449056609,-300.0,0.00026398,10]
[366783813,1750449056625,-300.0,0.00026398,10]
[366783814,1750449056638,-820.51,0.00026398,4]
[366783815,1750449056649,-1229.05,0.00026398,4]
[366783816,1750449056660,-1214.73,0.00026398,4]
[366783817,1750449056671,-490.0,0.00026399,4]
[366783818,1750449056682,-490.0,0.00026399,4]
[366783819,1750449056692,-490.0,0.00026399,4]
[366783820,1750449056703,-490.0,0.00026399,4]
[366783821,1750449056713,-490.0,0.00026399,4]
[366783822,1750449056723,-490.0,0.00026399,4]
[366783823,1750449056734,-490.0,0.00026399,4]
[366783824,1750449056745,-151.0,0.00026399,7]
[366783825,1750449056756,-151.0,0.00026399,7]
[366783826,1750449056768,-326.037638,0.00026399,7]
[366783827,1750449056779,-326.037638,0.00026399,7]
[366783828,1750449056790,-326.037638,0.00026399,7]
[366783829,1750449056800,-326.037638,0.00026399,7]
[366783830,1750449056811,-490.0,0.00026399,4]
[366783831,1750449056821,-490.0,0.00026399,4]
[366783832,1750449056831,-490.0,0.00026399,4]
[366783833,1750449056842,-490.0,0.00026399,4]
[366783834,1750449056852,-490.0,0.00026399,4]
[366783835,1750449056862,-490.0,0.00026399,4]
[366783836,1750449056872,-490.0,0.00026399,4]
[366783837,1750449056882,-490.0,0.00026399,4]
[366783838,1750449056893,-490.0,0.00026399,4]
[366783839,1750449056903,-490.0,0.00026399,4]
[366783840,1750449056913,-490.0,0.00026399,4]
[366783841,1750449056924,-498.64,0.00026399,4]
[366783842,1750449056935,-490.0,0.00026399,4]
[366783843,1750449056948,-151.347111,0.00026399,7]
[366783844,1750449056958,-490.0,0.00026399,4]
[366783845,1750449056969,-490.0,0.00026399,4]
[366783846,1750449056979,-490.0,0.00026399,4]
[366783847,1750449056990,-490.0,0.00026399,4]
[366783848,1750449057000,-490.0,0.00026399,4]
[366783849,1750449057012,-490.0,0.00026399,4]
[366783850,1750449057023,-490.0,0.00026399,4]
[366783851,1750449057033,-151.0,0.00026399,7]
[366783852,1750449057043,-151.0,0.00026399,7]
[366783853,1750449057053,-490.0,0.00026399,4]
[366783854,1750449057063,-490.0,0.00026399,4]
[366783855,1750449057074,-490.0,0.00026399,4]
[366783856,1750449057084,-490.0,0.00026399,4]
[366783857,1750449057094,-500.0,0.00026399,4]
[366783858,1750449057104,-490.0,0.00026399,4]
[366783859,1750449057114,-490.0,0.00026399,4]
[366783860,1750449057125,-490.0,0.00026399,4]
[366783861,1750449057135,-490.0,0.00026399,4]
[366783862,1750449057145,-490.0,0.00026399,4]
[366783863,1750449057155,-490.0,0.00026399,4]
[366783864,1750449057165,-490.0,0.00026399,4]
[366783865,1750449057176,-490.0,0.00026399,4]
[366783866,1750449057186,-490.0,0.00026399,4]
[366783867,1750449057196,-490.0,0.00026399,4]
[366783868,1750449057207,-490.0,0.00026399,4]
[366783869,1750449057219,-490.0,0.00026399,4]
[366783870,1750449057230,-490.0,0.00026399,4]
[366783871,1750449057240,-490.0,0.00026399,4]
[366783872,1750449057250,-490.0,0.00026399,4]
[366783873,1750449057262,-490.0,0.00026399,4]
[366783874,1750449057272,-490.0,0.00026399,4]
[366783875,1750449057283,-490.0,0.00026399,4]
[366783876,1750449057293,-151.0,0.00026399,7]
[366783877,1750449057303,-490.0,0.00026399,4]
[366783878,1750449057314,-490.0,0.00026399,4]
[366783879,1750449057325,-490.0,0.00026399,4]
[366783880,1750449057336,-490.0,0.00026399,4]
[366783881,1750449057347,-490.0,0.00026399,4]
[366783882,1750449057357,-490.0,0.00026399,4]
[366783883,1750449057368,-490.0,0.00026399,4]
[366783884,1750449057378,-490.0,0.00026399,4]
[366783885,1750449057388,-151.0,0.00026399,7]
[366783886,1750449057398,-151.0,0.00026399,7]
[366783887,1750449057409,-490.0,0.00026399,4]
[366783888,1750449057420,-490.0,0.00026399,4]
[366783889,1750449057431,-490.0,0.00026399,4]
[366783890,1750449057442,-490.0,0.00026399,4]
[366783891,1750449057453,-151.0,0.00026399,7]
[366783892,1750449057463,-151.0,0.00026399,7]
[366783893,1750449057474,-490.0,0.00026399,4]
[366783894,1750449057485,-490.0,0.00026399,4]
[366783895,1750449057496,-510.91581626,0.00026399,4]
[366783896,1750449057507,-490.0,0.00026399,4]
[366783897,1750449057519,-490.0,0.00026399,4]
[366783898,1750449057530,-490.0,0.00026399,4]
[366783899,1750449057541,-490.0,0.00026399,4]
[366783900,1750449057550,-490.0,0.00026399,4]
[366783901,1750449057561,-490.0,0.00026399,4]
[366783902,1750449057572,-490.0,0.00026399,4]
[366783903,1750449057582,-490.0,0.00026399,4]
[366783904,1750449057592,-490.0,0.00026399,4]
[366783905,1750449057602,-490.0,0.00026399,4]
[366783906,1750449057612,-490.0,0.00026399,4]
[366783907,1750449057623,-490.0,0.00026399,4]
[366783908,1750449057633,-490.0,0.00026399,4]
[366783909,1750449057643,-490.0,0.00026399,4]
[366783910,1750449057653,-490.0,0.00026399,4]
[366783911,1750449057664,-490.0,0.00026399,4]
[366783912,1750449057674,-490.0,0.00026399,4]
[366783913,1750449057683,-490.0,0.00026399,4]
[366783914,1750449057694,-490.0,0.00026399,4]
[366783915,1750449057704,-490.0,0.00026399,4]
[366783916,1750449057715,-490.0,0.00026399,4]
[366783917,1750449057725,-490.0,0.00026399,4]
[366783918,1750449057735,-490.0,0.00026399,4]
[366783919,1750449057745,-500.0,0.00026399,2]
[366783920,1750449057755,-420.0,0.00026399,4]
[366783921,1750449057765,-490.0,0.00026399,4]
[366783922,1750449057778,-490.0,0.00026399,4]
[366783923,1750449057789,-214.29486536,0.00026399,4]
[366783924,1750449057799,-490.0,0.00026399,4]
[366783925,1750449057809,-490.0,0.00026399,4]
[366783926,1750449057819,-490.0,0.00026399,4]
[366783927,1750449057829,-490.0,0.00026399,4]
[366783928,1750449057839,-151.0,0.00026399,7]
[366783929,1750449057849,-490.0,0.00026399,4]
[366783930,1750449057864,-490.0,0.00026399,4]
[366783931,1750449057874,-213.240372,0.00026399,7]
[366783932,1750449057885,-490.0,0.00026399,4]
[366783933,1750449057895,-490.0,0.00026399,4]
[366783934,1750449057905,-500.0,0.00026399,4]
[366783935,1750449057914,-490.0,0.00026399,4]
[366783936,1750449057925,-495.65541032,0.00026399,2]
[366783937,1750449057936,-490.0,0.00026399,4]
[366783938,1750449057948,-151.0,0.00026399,7]
[366783939,1750449057957,-316.533351,0.00026399,7]